[Event "***Titled Tuesday 3|2 Blitz"]
[Site "Chess.com"]
[Date "2017.02.07"]
[Round "1"]
[White "chessdude"]
[Black "FelixBlohberger"]
[Result "0-1"]
[WhiteElo "2419"]
[BlackElo "2062"]
[TimeControl "180+2"]
[EndTime "13:10:38 PST"]
[Termination "FelixBlohberger won by resignation"]

1. e4 {[%clk 0:03:01.9]} 1... e5 {[%clk 0:02:58]} 2. Nf3 {[%clk 0:03:00.5]} 2...
d6 {[%clk 0:02:58.4]} 3. d4 {[%clk 0:03:00.7]} 3... exd4 {[%clk 0:02:51.6]} 4.
Nxd4 {[%clk 0:03:00.7]} 4... Nf6 {[%clk 0:02:52.7]} 5. Nc3 {[%clk 0:03:00.8]}
5... Be7 {[%clk 0:02:53.6]} 6. Be2 {[%clk 0:03:00.7]} 6... O-O {[%clk 0:02:55]}
7. O-O {[%clk 0:03:01.9]} 7... Re8 {[%clk 0:02:56.4]} 8. f4 {[%clk 0:03:02.5]}
8... Bf8 {[%clk 0:02:58]} 9. Bf3 {[%clk 0:03:03.7]} 9... c5 {[%clk 0:02:59.4]}
10. Nde2 {[%clk 0:02:58.7]} 10... Nc6 {[%clk 0:02:58.4]} 11. Ng3 {[%clk
0:02:48.2]} 11... Nd4 {[%clk 0:02:44.8]} 12. Be3 {[%clk 0:02:44.7]} 12... Nxf3+
{[%clk 0:02:29.3]} 13. Qxf3 {[%clk 0:02:45.3]} 13... Qb6 {[%clk 0:02:25.2]} 14.
b3 {[%clk 0:02:34.8]} 14... Qb4 {[%clk 0:01:51.6]} 15. Bd2 {[%clk 0:02:21]}
15... Qd4+ {[%clk 0:01:51.9]} 16. Qf2 {[%clk 0:02:21.8]} 16... Bd7 {[%clk
0:01:21.7]} 17. Rad1 {[%clk 0:01:52]} 17... Qxf2+ {[%clk 0:00:55.9]} 18. Rxf2
{[%clk 0:01:44.5]} 18... Bc6 {[%clk 0:00:57.4]} 19. Re2 {[%clk 0:01:44.2]} 19...
d5 {[%clk 0:00:45.1]} 20. e5 {[%clk 0:01:42.3]} 20... Nd7 {[%clk 0:00:17.8]} 21.
Bc1 {[%clk 0:01:38.8]} 21... d4 {[%clk 0:00:19]} 22. Nce4 {[%clk 0:01:39.8]}
22... f6 {[%clk 0:00:20.1]} 23. exf6 {[%clk 0:01:35.9]} 23... Nxf6 {[%clk
0:00:22]} 24. Nxf6+ {[%clk 0:01:22.6]} 24... gxf6 {[%clk 0:00:23.9]} 25. Rde1
{[%clk 0:01:24.1]} 25... Kf7 {[%clk 0:00:24.8]} 26. Kf2 {[%clk 0:01:19.1]} 26...
a5 {[%clk 0:00:22.8]} 27. a4 {[%clk 0:01:19.5]} 27... b5 {[%clk 0:00:22.9]} 28.
axb5 {[%clk 0:01:19.7]} 28... Bxb5 {[%clk 0:00:24.8]} 29. Rxe8 {[%clk 0:01:18]}
29... Rxe8 {[%clk 0:00:24.9]} 30. Rxe8 {[%clk 0:01:19.6]} 30... Bxe8 {[%clk
0:00:24]} 31. Ne4 {[%clk 0:01:21.2]} 31... a4 {[%clk 0:00:25.3]} 32. Nd2 {[%clk
0:01:17.5]} 32... axb3 {[%clk 0:00:25.9]} 33. Nxb3 {[%clk 0:01:12.6]} 33... Ke6
{[%clk 0:00:26.2]} 34. g4 {[%clk 0:01:04.5]} 34... Kd5 {[%clk 0:00:27]} 35. Kf3
{[%clk 0:01:03.8]} 35... c4 {[%clk 0:00:26.4]} 36. Nd2 {[%clk 0:01:05]} 36...
Ba4 {[%clk 0:00:26.3]} 37. c3 {[%clk 0:01:04.5]} 37... dxc3 {[%clk 0:00:26.6]}
38. Ne4 {[%clk 0:01:05.2]} 38... Kd4 {[%clk 0:00:17.3]} 39. Nxf6 {[%clk
0:01:01.9]} 39... Kd3 {[%clk 0:00:13.1]} 40. f5 {[%clk 0:00:53.3]} 40... Bc6+
{[%clk 0:00:04.9]} 41. Kf2 {[%clk 0:00:49.4]} 41... c2 {[%clk 0:00:06.2]} 42.
Nxh7 {[%clk 0:00:47.6]} 42... Bc5+ {[%clk 0:00:07.7]} 43. Kg3 {[%clk 0:00:37.8]}
43... Be3 {[%clk 0:00:09.6]} 44. Ba3 {[%clk 0:00:27.2]} 44... Bc5 {[%clk
0:00:06.5]} 45. Bc1 {[%clk 0:00:27.5]} 45... Be3 {[%clk 0:00:07.7]} 46. Ba3
{[%clk 0:00:27.7]} 46... c1=Q {[%clk 0:00:09.3]} 47. Bxc1 {[%clk 0:00:28.2]}
47... Bxc1 {[%clk 0:00:11.2]} 48. g5 {[%clk 0:00:26.4]} 48... c3 {[%clk
0:00:09.7]} 49. f6 {[%clk 0:00:22.1]} 49... c2 {[%clk 0:00:09.3]} 50. g6 {[%clk
0:00:12.6]} 50... Bf4+ {[%clk 0:00:06.5]} 51. Kxf4 {[%clk 0:00:12.6]} 51...
c1=Q+ {[%clk 0:00:08.4]} 52. Kf5 {[%clk 0:00:13.7]} 52... Qc5+ {[%clk
0:00:07.9]} 53. Ke6 {[%clk 0:00:14.7]} 53... Bd5+ {[%clk 0:00:05.7]} 54. Kd7
{[%clk 0:00:15.3]} 54... Qc6+ {[%clk 0:00:06.6]} 55. Ke7 {[%clk 0:00:16.9]}
55... Qe6+ {[%clk 0:00:07.7]} 56. Kf8 {[%clk 0:00:18.3]} 56... Qg8+ {[%clk
0:00:09.1]} 57. Ke7 {[%clk 0:00:19]} 57... Qxg6 {[%clk 0:00:10]} 58. Nf8 {[%clk
0:00:20.1]} 58... Qf7+ {[%clk 0:00:11]} 59. Kd6 {[%clk 0:00:21.8]} 59... Qxf8+
{[%clk 0:00:12.5]} 60. Kxd5 {[%clk 0:00:23.3]} 60... Qxf6 {[%clk 0:00:14]} 0-1

[Event "***Titled Tuesday 3|2 Blitz"]
[Site "Chess.com"]
[Date "2017.02.07"]
[Round "1"]
[White "SavelijTartakover"]
[Black "cheese111"]
[Result "1-0"]
[WhiteElo "2532"]
[BlackElo "2230"]
[TimeControl "180+2"]
[EndTime "13:10:39 PST"]
[Termination "SavelijTartakover won on time"]

1. d4 {[%clk 0:03:02]} 1... Nf6 {[%clk 0:02:59.8]} 2. c4 {[%clk 0:02:59.1]} 2...
g6 {[%clk 0:02:57.4]} 3. Nc3 {[%clk 0:02:58.8]} 3... d5 {[%clk 0:02:56.5]} 4. e3
{[%clk 0:02:58.2]} 4... Bg7 {[%clk 0:02:55.3]} 5. Qb3 {[%clk 0:02:58.9]} 5... e6
{[%clk 0:02:51.7]} 6. Qa3 {[%clk 0:02:58.5]} 6... c6 {[%clk 0:02:48.4]} 7. Nf3
{[%clk 0:02:56.8]} 7... a5 {[%clk 0:02:49.2]} 8. Bd2 {[%clk 0:02:55.6]} 8...
dxc4 {[%clk 0:02:48.8]} 9. Bxc4 {[%clk 0:02:45.3]} 9... b5 {[%clk 0:02:49.2]}
10. Bxb5 {[%clk 0:02:43.6]} 10... cxb5 {[%clk 0:02:49.7]} 11. Nxb5 {[%clk
0:02:45.5]} 11... Bf8 {[%clk 0:02:27.5]} 12. Qb3 {[%clk 0:02:39.6]} 12... Be7
{[%clk 0:02:11]} 13. Rc1 {[%clk 0:02:34.3]} 13... Na6 {[%clk 0:01:50.1]} 14. Ne5
{[%clk 0:02:26.2]} 14... Bd7 {[%clk 0:01:31.9]} 15. Nxd7 {[%clk 0:02:14.5]}
15... Qxd7 {[%clk 0:01:33.8]} 16. Bxa5 {[%clk 0:02:09.3]} 16... O-O {[%clk
0:01:32.1]} 17. O-O {[%clk 0:02:06.8]} 17... Rab8 {[%clk 0:01:31.8]} 18. a4
{[%clk 0:02:06]} 18... Rfc8 {[%clk 0:01:32.4]} 19. h3 {[%clk 0:02:04.4]} 19...
Nd5 {[%clk 0:01:27.6]} 20. Qd3 {[%clk 0:01:46.4]} 20... Nab4 {[%clk 0:01:23]}
21. Bxb4 {[%clk 0:01:45.8]} 21... Nxb4 {[%clk 0:01:16.4]} 22. Qd2 {[%clk
0:01:45.6]} 22... Na2 {[%clk 0:00:48.8]} 23. Rxc8+ {[%clk 0:01:23.7]} 23... Rxc8
{[%clk 0:00:50.7]} 24. b3 {[%clk 0:01:24.7]} 24... Nb4 {[%clk 0:00:33.1]} 25.
Rc1 {[%clk 0:01:24.8]} 25... Rxc1+ {[%clk 0:00:31.2]} 26. Qxc1 {[%clk
0:01:26.7]} 26... Qc6 {[%clk 0:00:32.2]} 27. Qc4 {[%clk 0:01:06.1]} 27... Kf8
{[%clk 0:00:26.8]} 28. g3 {[%clk 0:00:54.1]} 28... h5 {[%clk 0:00:21.3]} 29. h4
{[%clk 0:00:54.7]} 29... Ke8 {[%clk 0:00:21.8]} 30. Nc3 {[%clk 0:00:51.3]} 30...
Kd7 {[%clk 0:00:18.6]} 31. Kf1 {[%clk 0:00:38.1]} 31... Nd5 {[%clk 0:00:18.4]}
32. Qxc6+ {[%clk 0:00:27.5]} 32... Kxc6 {[%clk 0:00:18.9]} 33. Ne4 {[%clk
0:00:29]} 33... Kb6 {[%clk 0:00:16.6]} 34. Ke2 {[%clk 0:00:29.2]} 34... Ka5
{[%clk 0:00:17.6]} 35. Kd3 {[%clk 0:00:27.4]} 35... Kb4 {[%clk 0:00:18.8]} 36.
Kc2 {[%clk 0:00:28.4]} 36... Ka3 {[%clk 0:00:19.3]} 37. a5 {[%clk 0:00:25.4]}
37... Bd8 {[%clk 0:00:15.1]} 38. Ng5 {[%clk 0:00:20.9]} 38... Bxg5 {[%clk
0:00:11]} 39. hxg5 {[%clk 0:00:21.4]} 39... Kb4 {[%clk 0:00:08.6]} 40. a6 {[%clk
0:00:22.1]} 40... Kb5 {[%clk 0:00:09.6]} 41. a7 {[%clk 0:00:22.4]} 41... Nc7
{[%clk 0:00:10.5]} 42. Kd3 {[%clk 0:00:21.8]} 42... Kb6 {[%clk 0:00:11.6]} 43.
Kc4 {[%clk 0:00:22.7]} 43... Kxa7 {[%clk 0:00:12.6]} 44. Kc5 {[%clk 0:00:24.2]}
44... Nd5 {[%clk 0:00:10.6]} 45. Kd6 {[%clk 0:00:23.3]} 45... Kb6 {[%clk
0:00:10.8]} 46. Kd7 {[%clk 0:00:18.8]} 46... Nc3 {[%clk 0:00:11.8]} 47. Ke7
{[%clk 0:00:18.8]} 47... Ne4 {[%clk 0:00:12.6]} 48. Kxf7 {[%clk 0:00:18.9]}
48... Nxg5+ {[%clk 0:00:13.6]} 49. Kxg6 {[%clk 0:00:19.5]} 49... Ne4 {[%clk
0:00:15.1]} 50. Kxh5 {[%clk 0:00:18.1]} 50... Nxf2 {[%clk 0:00:16.1]} 51. g4
{[%clk 0:00:19.3]} 51... Kc6 {[%clk 0:00:16.3]} 52. g5 {[%clk 0:00:20.1]} 52...
Ne4 {[%clk 0:00:14.1]} 53. g6 {[%clk 0:00:19.9]} 53... Nf6+ {[%clk 0:00:14.7]}
54. Kg5 {[%clk 0:00:20.2]} 54... Ne4+ {[%clk 0:00:13]} 55. Kf4 {[%clk
0:00:19.6]} 55... Kd5 {[%clk 0:00:13.5]} 56. g7 {[%clk 0:00:18.7]} 56... Nf6
{[%clk 0:00:14.5]} 57. Kg5 {[%clk 0:00:20.2]} 57... Ng8 {[%clk 0:00:15.3]} 58.
Kg6 {[%clk 0:00:20.8]} 58... Ke4 {[%clk 0:00:14.7]} 59. b4 {[%clk 0:00:21.6]}
59... Kxe3 {[%clk 0:00:14.1]} 60. b5 {[%clk 0:00:22.7]} 60... Kxd4 {[%clk
0:00:15.1]} 61. b6 {[%clk 0:00:23.8]} 1-0

[Event "***Titled Tuesday 3|2 Blitz"]
[Site "Chess.com"]
[Date "2017.02.07"]
[Round "1"]
[White "silverback96"]
[Black "Blitzstream"]
[Result "0-1"]
[WhiteElo "2064"]
[BlackElo "2465"]
[TimeControl "180+2"]
[EndTime "13:10:40 PST"]
[Termination "Blitzstream won by resignation"]

1. Nf3 {[%clk 0:02:56.7]} 1... Nf6 {[%clk 0:02:59.9]} 2. g3 {[%clk 0:02:54.7]}
2... c5 {[%clk 0:03:00.2]} 3. Bg2 {[%clk 0:02:55.6]} 3... Nc6 {[%clk 0:03:01.3]}
4. O-O {[%clk 0:02:40.8]} 4... g6 {[%clk 0:02:59.1]} 5. d4 {[%clk 0:02:30.4]}
5... cxd4 {[%clk 0:02:56.8]} 6. Nxd4 {[%clk 0:02:25.8]} 6... Bg7 {[%clk
0:02:58.7]} 7. c4 {[%clk 0:02:22.7]} 7... O-O {[%clk 0:02:57]} 8. Nc3 {[%clk
0:02:20.8]} 8... Qa5 {[%clk 0:02:20.9]} 9. e4 {[%clk 0:02:04.6]} 9... d6 {[%clk
0:02:19.3]} 10. Be3 {[%clk 0:02:05.7]} 10... Bg4 {[%clk 0:02:18.3]} 11. f3
{[%clk 0:02:04.6]} 11... Bd7 {[%clk 0:02:19]} 12. Nd5 {[%clk 0:02:05.8]} 12...
Nxd5 {[%clk 0:02:17.4]} 13. cxd5 {[%clk 0:02:07.7]} 13... Nxd4 {[%clk
0:02:05.1]} 14. Bxd4 {[%clk 0:02:09.6]} 14... Rac8 {[%clk 0:02:06.4]} 15. Bxg7
{[%clk 0:02:10.3]} 15... Kxg7 {[%clk 0:02:08.3]} 16. Qd4+ {[%clk 0:02:12]} 16...
f6 {[%clk 0:02:08.2]} 17. Rfc1 {[%clk 0:02:11.2]} 17... Rxc1+ {[%clk 0:01:29.8]}
18. Rxc1 {[%clk 0:02:11.6]} 18... Rc8 {[%clk 0:01:31.7]} 19. Rxc8 {[%clk
0:02:09.4]} 19... Bxc8 {[%clk 0:01:33.6]} 20. a3 {[%clk 0:02:07]} 20... Qe1+
{[%clk 0:01:30.4]} 21. Bf1 {[%clk 0:02:05.3]} 21... b6 {[%clk 0:01:30.3]} 22.
Qf2 {[%clk 0:02:07.2]} 22... Qc1 {[%clk 0:01:30]} 23. h4 {[%clk 0:01:58.1]}
23... Bh3 {[%clk 0:01:24]} 24. g4 {[%clk 0:01:57]} 24... g5 {[%clk 0:01:05.9]}
25. hxg5 {[%clk 0:01:54]} 25... fxg5 {[%clk 0:01:04]} 26. Qd4+ {[%clk
0:01:47.6]} 26... Kf7 {[%clk 0:01:03]} 27. Qc4 {[%clk 0:01:47.6]} 27... Qxf1+
{[%clk 0:00:56.1]} 28. Qxf1 {[%clk 0:01:47.8]} 28... Bxf1 {[%clk 0:00:58]} 29.
Kxf1 {[%clk 0:01:48.9]} 29... Kf6 {[%clk 0:00:59.5]} 30. Ke2 {[%clk 0:01:40.5]}
30... Ke5 {[%clk 0:01:00.5]} 31. Ke3 {[%clk 0:01:41.9]} 31... a6 {[%clk
0:00:57.1]} 32. a4 {[%clk 0:01:38.8]} 32... b5 {[%clk 0:00:54.5]} 33. axb5
{[%clk 0:01:23.1]} 33... axb5 {[%clk 0:00:56.4]} 34. b4 {[%clk 0:01:25]} 34...
h6 {[%clk 0:00:56.9]} 35. Kd3 {[%clk 0:01:26.2]} 35... Kf4 {[%clk 0:00:57.8]}
36. Ke2 {[%clk 0:01:27.2]} 36... Kg3 {[%clk 0:00:58.6]} 37. Ke3 {[%clk
0:01:23.6]} 37... Kg2 {[%clk 0:00:59.9]} 38. Ke2 {[%clk 0:01:12.2]} 38... Kg3
{[%clk 0:01:00.8]} 39. Ke3 {[%clk 0:01:13.5]} 39... Kg2 {[%clk 0:00:54.3]} 40.
Ke2 {[%clk 0:01:14.6]} 40... Kg3 {[%clk 0:00:50.5]} 41. Ke3 {[%clk 0:01:13.1]}
41... Kh4 {[%clk 0:00:44.4]} 42. e5 {[%clk 0:00:49.8]} 42... h5 {[%clk 0:00:30]}
43. gxh5 {[%clk 0:00:49.1]} 43... Kxh5 {[%clk 0:00:31.9]} 44. exd6 {[%clk
0:00:48.4]} 44... exd6 {[%clk 0:00:32.8]} 45. Ke4 {[%clk 0:00:49.9]} 45... Kg6
{[%clk 0:00:33.2]} 46. f4 {[%clk 0:00:21.3]} 46... gxf4 {[%clk 0:00:35.1]} 47.
Kxf4 {[%clk 0:00:23.2]} 47... Kf6 {[%clk 0:00:36.5]} 48. Ke4 {[%clk 0:00:24.5]}
48... Kg5 {[%clk 0:00:37.5]} 49. Kd3 {[%clk 0:00:18.8]} 49... Kf5 {[%clk
0:00:36]} 50. Kd4 {[%clk 0:00:20.7]} 50... Kf4 {[%clk 0:00:37.2]} 51. Kd3 {[%clk
0:00:22.6]} 51... Ke5 {[%clk 0:00:38.4]} 52. Ke3 {[%clk 0:00:21.2]} 52... Kxd5
{[%clk 0:00:40.3]} 53. Kd3 {[%clk 0:00:23.1]} 53... Ke5 {[%clk 0:00:41.7]} 54.
Ke3 {[%clk 0:00:24.7]} 54... d5 {[%clk 0:00:43.2]} 55. Kd3 {[%clk 0:00:26.6]}
55... d4 {[%clk 0:00:44.7]} 56. Kd2 {[%clk 0:00:27.8]} 56... Ke4 {[%clk
0:00:46.3]} 57. Ke2 {[%clk 0:00:29.2]} 57... d3+ {[%clk 0:00:47.9]} 58. Ke1
{[%clk 0:00:29.4]} 58... Kd4 {[%clk 0:00:49.8]} 59. Kd2 {[%clk 0:00:30.5]} 59...
Kc4 {[%clk 0:00:51.2]} 0-1

[Event "***Titled Tuesday 3|2 Blitz"]
[Site "Chess.com"]
[Date "2017.02.07"]
[Round "1"]
[White "GeorgMeier"]
[Black "macko06"]
[Result "1-0"]
[WhiteElo "2690"]
[BlackElo "2380"]
[TimeControl "180+2"]
[EndTime "13:10:43 PST"]
[Termination "GeorgMeier won by resignation"]

1. Nf3 {[%clk 0:03:02]} 1... Nf6 {[%clk 0:02:57.8]} 2. g3 {[%clk 0:03:01.8]}
2... b5 {[%clk 0:02:57.5]} 3. Bg2 {[%clk 0:03:02.6]} 3... Bb7 {[%clk 0:02:58.9]}
4. O-O {[%clk 0:03:03.5]} 4... e6 {[%clk 0:03:00.3]} 5. d3 {[%clk 0:03:04.4]}
5... c5 {[%clk 0:02:55.6]} 6. e4 {[%clk 0:03:05.4]} 6... d6 {[%clk 0:02:56.7]}
7. e5 {[%clk 0:03:02.4]} 7... dxe5 {[%clk 0:02:55.6]} 8. Nxe5 {[%clk 0:03:03.6]}
8... Bxg2 {[%clk 0:02:55.9]} 9. Kxg2 {[%clk 0:03:05.5]} 9... Qd5+ {[%clk
0:02:56.4]} 10. Qf3 {[%clk 0:03:06]} 10... Qxf3+ {[%clk 0:02:56.8]} 11. Kxf3
{[%clk 0:03:05.7]} 11... Bd6 {[%clk 0:02:56.9]} 12. Re1 {[%clk 0:02:57.9]} 12...
Bxe5 {[%clk 0:02:49.6]} 13. Rxe5 {[%clk 0:02:58.7]} 13... Nfd7 {[%clk
0:02:51.3]} 14. Re2 {[%clk 0:02:54]} 14... Nc6 {[%clk 0:02:52.1]} 15. Be3 {[%clk
0:02:55]} 15... Nd4+ {[%clk 0:02:44.4]} 16. Bxd4 {[%clk 0:02:54.8]} 16... cxd4
{[%clk 0:02:46.3]} 17. Nd2 {[%clk 0:02:46.8]} 17... O-O {[%clk 0:02:45.4]} 18.
a4 {[%clk 0:02:43.1]} 18... a6 {[%clk 0:02:44.9]} 19. Nb3 {[%clk 0:02:36]} 19...
e5 {[%clk 0:02:44]} 20. Kg2 {[%clk 0:02:35.3]} 20... f6 {[%clk 0:02:42.3]} 21.
f4 {[%clk 0:02:34]} 21... Rfe8 {[%clk 0:02:34.2]} 22. fxe5 {[%clk 0:02:21.2]}
22... fxe5 {[%clk 0:02:36.1]} 23. Kf3 {[%clk 0:02:02.7]} 23... Kf7 {[%clk
0:02:31.9]} 24. h3 {[%clk 0:01:54.9]} 24... h5 {[%clk 0:02:28.9]} 25. Nd2 {[%clk
0:01:41.7]} 25... Ke6 {[%clk 0:02:23.5]} 26. Ne4 {[%clk 0:01:41.1]} 26... Kd5
{[%clk 0:02:21.7]} 27. Kg2 {[%clk 0:01:31.2]} 27... Rf8 {[%clk 0:02:11.9]} 28.
Nd2 {[%clk 0:01:10.4]} 28... Nc5 {[%clk 0:01:52.1]} 29. Nf3 {[%clk 0:01:10]}
29... Nd7 {[%clk 0:01:46.7]} 30. Rae1 {[%clk 0:01:05.2]} 30... Rfe8 {[%clk
0:01:40.6]} 31. Ra1 {[%clk 0:01:06.2]} 31... Rf8 {[%clk 0:01:39.1]} 32. Ra2
{[%clk 0:00:49.3]} 32... Rfc8 {[%clk 0:01:28.3]} 33. Ra1 {[%clk 0:00:47]} 33...
Rf8 {[%clk 0:01:28.1]} 34. Ra3 {[%clk 0:00:46]} 34... Rfc8 {[%clk 0:01:27.7]}
35. Ra2 {[%clk 0:00:47]} 35... Rf8 {[%clk 0:01:23.7]} 36. Ra1 {[%clk 0:00:48]}
36... Rfc8 {[%clk 0:01:22.2]} 37. g4 {[%clk 0:00:48.3]} 37... hxg4 {[%clk
0:01:22.6]} 38. hxg4 {[%clk 0:00:50.2]} 38... Rh8 {[%clk 0:01:19.7]} 39. Kg3
{[%clk 0:00:49.9]} 39... Rhf8 {[%clk 0:01:14.2]} 40. a5 {[%clk 0:00:43.3]} 40...
Rh8 {[%clk 0:01:11.7]} 41. Rae1 {[%clk 0:00:43.7]} 41... Rae8 {[%clk 0:01:12.1]}
42. c3 {[%clk 0:00:39]} 42... dxc3 {[%clk 0:01:10.6]} 43. bxc3 {[%clk
0:00:40.9]} 43... Rh6 {[%clk 0:01:01.9]} 44. c4+ {[%clk 0:00:35.3]} 44... bxc4
{[%clk 0:01:01.6]} 45. dxc4+ {[%clk 0:00:37.2]} 45... Kd6 {[%clk 0:00:55.6]} 46.
Ng5 {[%clk 0:00:29.8]} 46... Kc7 {[%clk 0:00:48.5]} 47. Rf1 {[%clk 0:00:27.9]}
47... Rf6 {[%clk 0:00:45.5]} 48. Rh1 {[%clk 0:00:26.9]} 48... Rc6 {[%clk
0:00:41]} 49. Rh7 {[%clk 0:00:27.7]} 49... Re7 {[%clk 0:00:42.2]} 50. Re3 {[%clk
0:00:21.2]} 50... Rxc4 {[%clk 0:00:40.6]} 51. Rxg7 {[%clk 0:00:21.2]} 51... Rxg7
{[%clk 0:00:38.8]} 52. Ne6+ {[%clk 0:00:22.7]} 52... Kd6 {[%clk 0:00:38.9]} 53.
Nxg7 {[%clk 0:00:23.7]} 53... Nf6 {[%clk 0:00:35.4]} 54. Nf5+ {[%clk 0:00:25.1]}
54... Ke6 {[%clk 0:00:34.4]} 55. Nh6 {[%clk 0:00:26.7]} 55... Ne4+ {[%clk
0:00:33.1]} 56. Kh4 {[%clk 0:00:27.4]} 56... Nf6 {[%clk 0:00:30.4]} 57. Rb3
{[%clk 0:00:27.8]} 57... Nxg4 {[%clk 0:00:20.4]} 58. Nxg4 {[%clk 0:00:26]} 58...
Kf5 {[%clk 0:00:21.7]} 59. Rf3+ {[%clk 0:00:26.1]} 59... Rf4 {[%clk 0:00:20.8]}
60. Rf2 {[%clk 0:00:21]} 60... Rxf2 {[%clk 0:00:19.3]} 61. Nxf2 {[%clk
0:00:22.9]} 61... Kf4 {[%clk 0:00:18.6]} 62. Nd3+ {[%clk 0:00:23.3]} 62... Ke4
{[%clk 0:00:19.6]} 63. Nc5+ {[%clk 0:00:24.7]} 63... Kd5 {[%clk 0:00:21.1]} 64.
Nxa6 {[%clk 0:00:25.9]} 64... Kc6 {[%clk 0:00:19.7]} 65. Nb4+ {[%clk 0:00:26.4]}
65... Kb5 {[%clk 0:00:21.2]} 66. a6 {[%clk 0:00:27.7]} 66... Kb6 {[%clk
0:00:21.2]} 67. Kg3 {[%clk 0:00:29]} 67... e4 {[%clk 0:00:22.6]} 68. Kf4 {[%clk
0:00:30.2]} 1-0

[Event "***Titled Tuesday 3|2 Blitz"]
[Site "Chess.com"]
[Date "2017.02.07"]
[Round "1"]
[White "jcibarra"]
[Black "WanderingPuppet"]
[Result "1-0"]
[WhiteElo "2621"]
[BlackElo "2324"]
[TimeControl "180+2"]
[EndTime "13:11:09 PST"]
[Termination "jcibarra won by checkmate"]

1. e4 {[%clk 0:03:02]} 1... c5 {[%clk 0:02:58.9]} 2. Nf3 {[%clk 0:03:00]} 2...
d6 {[%clk 0:02:56.8]} 3. d4 {[%clk 0:03:01.3]} 3... cxd4 {[%clk 0:02:58.7]} 4.
Nxd4 {[%clk 0:03:02.9]} 4... Nf6 {[%clk 0:02:59.5]} 5. Nc3 {[%clk 0:03:04.2]}
5... a6 {[%clk 0:03:00.6]} 6. Bg5 {[%clk 0:03:05.4]} 6... e6 {[%clk 0:03:01.5]}
7. f4 {[%clk 0:03:06.8]} 7... Bd7 {[%clk 0:03:01.1]} 8. Qf3 {[%clk 0:02:55.7]}
8... Nc6 {[%clk 0:03:01.7]} 9. O-O-O {[%clk 0:02:55.8]} 9... Qa5 {[%clk
0:03:02.3]} 10. Bxf6 {[%clk 0:02:45.2]} 10... gxf6 {[%clk 0:03:01.5]} 11. Nb3
{[%clk 0:02:46.8]} 11... Qc7 {[%clk 0:03:02]} 12. f5 {[%clk 0:02:37.5]} 12...
O-O-O {[%clk 0:02:19.5]} 13. Qh5 {[%clk 0:02:32.8]} 13... Be8 {[%clk 0:02:06]}
14. Kb1 {[%clk 0:02:32.6]} 14... Kb8 {[%clk 0:01:47.8]} 15. g3 {[%clk
0:02:32.9]} 15... h6 {[%clk 0:01:35.2]} 16. Bh3 {[%clk 0:02:32.2]} 16... Rg8
{[%clk 0:01:31.5]} 17. Qe2 {[%clk 0:02:29.2]} 17... Bd7 {[%clk 0:01:24.7]} 18.
Rhf1 {[%clk 0:02:30.1]} 18... Be7 {[%clk 0:01:17.7]} 19. Qh5 {[%clk 0:02:24.5]}
19... Rdf8 {[%clk 0:01:02.1]} 20. Ne2 {[%clk 0:02:20]} 20... Rg5 {[%clk
0:00:55.7]} 21. Qf3 {[%clk 0:02:12.5]} 21... Ne5 {[%clk 0:00:52.4]} 22. Qe3
{[%clk 0:02:00.6]} 22... Nc4 {[%clk 0:00:49.8]} 23. Qc3 {[%clk 0:01:58.3]} 23...
e5 {[%clk 0:00:43.6]} 24. Qf3 {[%clk 0:01:45.5]} 24... d5 {[%clk 0:00:26.3]} 25.
Rxd5 {[%clk 0:01:41.9]} 25... Bc6 {[%clk 0:00:23.7]} 26. Rd3 {[%clk 0:01:28.1]}
26... Qb6 {[%clk 0:00:24.8]} 27. Nc3 {[%clk 0:01:26.9]} 27... a5 {[%clk
0:00:24.1]} 28. a4 {[%clk 0:01:18.6]} 28... Bb4 {[%clk 0:00:18.3]} 29. Nd5
{[%clk 0:01:18.8]} 29... Bxd5 {[%clk 0:00:17.7]} 30. Rxd5 {[%clk 0:01:20.7]}
30... Rc8 {[%clk 0:00:13.2]} 31. Rb5 {[%clk 0:01:16.2]} 31... Qc6 {[%clk
0:00:13.1]} 32. Qd3 {[%clk 0:01:14.9]} 32... Ne3 {[%clk 0:00:11.5]} 33. Qxe3
{[%clk 0:01:12]} 33... Qxc2+ {[%clk 0:00:11]} 34. Ka2 {[%clk 0:01:13.6]} 34...
Rc3 {[%clk 0:00:09.7]} 35. Qd2 {[%clk 0:00:31.1]} 35... Qxb3+ {[%clk 0:00:09]}
36. Kb1 {[%clk 0:00:32.7]} 36... Rd3 {[%clk 0:00:05.4]} 37. Qc1 {[%clk
0:00:25.8]} 37... Rc3 {[%clk 0:00:05]} 38. Qd1 {[%clk 0:00:24.5]} 38... Qxd1+
{[%clk 0:00:03.8]} 39. Rxd1 {[%clk 0:00:25.7]} 39... Rc7 {[%clk 0:00:04.7]} 40.
Bf1 {[%clk 0:00:23]} 40... Rg8 {[%clk 0:00:05.4]} 41. b3 {[%clk 0:00:23.7]}
41... Rgc8 {[%clk 0:00:06.6]} 42. Bc4 {[%clk 0:00:25.3]} 42... Ka7 {[%clk
0:00:07]} 43. Rdd5 {[%clk 0:00:24.4]} 43... Re8 {[%clk 0:00:06.7]} 44. Kc2
{[%clk 0:00:25.6]} 44... Ree7 {[%clk 0:00:07]} 45. Rd8 {[%clk 0:00:25.8]} 45...
Red7 {[%clk 0:00:06.9]} 46. Rxd7 {[%clk 0:00:27]} 46... Rxd7 {[%clk 0:00:08.8]}
47. Bd5 {[%clk 0:00:21.1]} 47... Rc7+ {[%clk 0:00:09]} 48. Kd1 {[%clk
0:00:21.7]} 48... b6 {[%clk 0:00:10.4]} 49. Ke2 {[%clk 0:00:22.9]} 49... Rc2+
{[%clk 0:00:09.8]} 50. Kf3 {[%clk 0:00:24.1]} 50... Rxh2 {[%clk 0:00:10.2]} 51.
Bxf7 {[%clk 0:00:26]} 51... Rd2 {[%clk 0:00:08.2]} 52. Bc4 {[%clk 0:00:25.4]}
52... Rc2 {[%clk 0:00:08.2]} 53. Rd5 {[%clk 0:00:25]} 53... Rd2 {[%clk 0:00:09]}
54. Bd3 {[%clk 0:00:25.9]} 54... Kb7 {[%clk 0:00:08.1]} 55. Kg4 {[%clk
0:00:26.4]} 55... Kc6 {[%clk 0:00:08.4]} 56. Kh5 {[%clk 0:00:26]} 56... Rf2
{[%clk 0:00:07.1]} 57. Bb5+ {[%clk 0:00:26.3]} 57... Kc7 {[%clk 0:00:07.8]} 58.
Kg6 {[%clk 0:00:28.2]} 58... Rg2 {[%clk 0:00:07.4]} 59. Kxf6 {[%clk 0:00:28.9]}
59... Rxg3 {[%clk 0:00:08.7]} 60. Kxe5 {[%clk 0:00:30.2]} 60... h5 {[%clk
0:00:10]} 61. Ke6 {[%clk 0:00:29.3]} 61... Rf3 {[%clk 0:00:10.1]} 62. Rd7+
{[%clk 0:00:30.1]} 62... Kc8 {[%clk 0:00:10.7]} 63. Rh7 {[%clk 0:00:32]} 63...
Re3 {[%clk 0:00:08.5]} 64. e5 {[%clk 0:00:33]} 64... Bc3 {[%clk 0:00:09.3]} 65.
f6 {[%clk 0:00:28.4]} 65... Rxe5+ {[%clk 0:00:08.1]} 66. Kd6 {[%clk 0:00:29.2]}
66... Re1 {[%clk 0:00:05.4]} 67. Rh8+ {[%clk 0:00:29.9]} 67... Kb7 {[%clk
0:00:06.1]} 68. Bc6+ {[%clk 0:00:31.3]} 68... Ka7 {[%clk 0:00:03.7]} 69. Ra8#
{[%clk 0:00:33.2]} 1-0